[Event "Hunan Belt and Road Open 2019"]
[Site "Hunan"]
[Date "2019.07.29"]
[Round "1.10"]
[White "Xu, Jun"]
[Black "Najer, Evgeniy"]
[Result "1/2-1/2"]
[ECO "D47"]
[WhiteElo "2477"]
[BlackElo "2678"]
[Annotator "ChessBase"]
[PlyCount "72"]
[EventDate "2019.07.29"]
[EventType "swiss"]
[EventCountry "CHN"]
[SourceTitle "playchess.com"]
[Source "ChessBase"]
[SourceQuality "1"]
[TimeControl "5400+30"]

1. d4 {[%emt 0:00:00]} d5 {[%emt 0:00:00]} 2. c4 {[%emt 0:00:00]} c6 {[%emt 0:00:00]} 3. Nc3 {[%emt 0:00:00]} Nf6 {[%emt 0:00:27]} 4. e3 {[%emt 0:00:00]} e6 {[%emt 0:00:04]} 5. Nf3 {[%emt 0:00:00]} Nbd7 {[%emt 0:00:04]} 6. Bd3 {[%emt 0:00:08]} dxc4 {[%emt 0:00:10]} 7. Bxc4 {[%emt 0:00:04]} b5 {[%emt 0:00:04]} 8. Be2 {[%emt 0:00:03]} Bb7 {[%emt 0:00:35]} 9. O-O {[%emt 0:00:11]} Be7 {[%emt 0:00:58]} 10. e4 {[%emt 0:04:27]} b4 {[%emt 0:00:13]} 11. e5 {[%emt 0:00:04]} bxc3 {[%emt 0:00:04]} 12. exf6 {[%emt 0:00:07]} Bxf6 {[%emt 0:03:35]} 13. bxc3 {[%emt 0:00:08]} c5 {[%emt 0:00:14]} 14. dxc5 {[%emt 0:00:09]} O-O {[%emt 0:01:53]} 15. Ba3 {[%emt 0:02:08]} Be7 {[%emt 0:03:31]} 16. Qd4 {[%emt 0:00:07]} Qc7 {[%emt 0:07:01]} 17. Rab1 {[%emt 0:00:06]} Bd5 {[%emt 0:09:20]} 18. c4 {[%emt 0:02:26]} Bc6 {[%emt 0:02:18]} 19. Qe3 {[%emt 0:02:45]} e5 {[%emt 0:15:22]} 20. Nd2 {[%emt 0:06:04]} f5 {[%emt 0:02:58]} 21. f4 {[%emt 0:06:16]} Rae8 {[%emt 0:05:17]} 22. Bh5 {[%emt 0:16:50]} g6 {[%emt 0:01:59]} 23. Bf3 {[%emt 0:05:01]} Bxf3 {[%emt 0:11:37]} 24. Nxf3 {[%emt 0:00:45]} exf4 {[%emt 0:00:45]} 25. Qe6+ {[%emt 0:00:13]} Kg7 {[%emt 0:00:38]} 26. Qd5 {[%emt 0:03:15]} Bxc5+ {[%emt 0:14:17]} 27. Bxc5 {[%emt 0:07:21]} Qxc5+ {[%emt 0:01:45]} 28. Nd4 {[%emt 0:01:37]} Re4 {[%emt 0:03:52]} 29. Rfd1 {[%emt 0:03:41]} Rf7 {[%emt 0:00:02]} 30. Rb7 {[%emt 0:02:17]} Qxd5 {[%emt 0:05:14]} 31. cxd5 {[%emt 0:00:11]} Ne5 {[%emt 0:00:08]} 32. Rb5 {[%emt 0:08:29]} f3 {[%emt 0:05:46]} 33. d6 {[%emt 0:05:44]} Kf6 {[%emt 0:04:25]} 34. Nxf3 {[%emt 0:01:42]} Rd7 {[%emt 0:00:00]} 35. Nxe5 {[%emt 0:00:52]} Rxe5 {[%emt 0:00:03]} 36. Rb2 {[%emt 0:00:12]} Ke6 {[%emt 0:01:10]} 1/2-1/2

[Event "Hunan Belt and Road Open 2019"]
[Site "Hunan"]
[Date "2019.07.29"]
[Round "1.11"]
[White "Cheparinov, Ivan"]
[Black "Fang, Yuxiang"]
[Result "1-0"]
[ECO "D15"]
[WhiteElo "2666"]
[BlackElo "2476"]
[Annotator "ChessBase"]
[PlyCount "83"]
[EventDate "2019.07.29"]
[EventType "swiss"]
[EventCountry "CHN"]
[SourceTitle "playchess.com"]
[Source "ChessBase"]
[SourceQuality "1"]
[TimeControl "5400+30"]

1. d4 {[%emt 0:00:00]} d5 {[%emt 0:03:03]} 2. c4 {[%emt 0:00:00]} c6 {[%emt 0:06:33]} 3. Nf3 {[%emt 0:00:00]} Nf6 {[%emt 0:00:58]} 4. Nc3 {[%emt 0:00:05]} a6 {[%emt 0:01:55]} 5. c5 {[%emt 0:00:14]} Bf5 {[%emt 0:03:33]} 6. Qb3 {[%emt 0:00:20]} Ra7 {[%emt 0:02:27]} 7. Nh4 {[%emt 0:01:48]} Bg6 {[%emt 0:03:41]} 8. Bg5 {[%emt 0:01:08]} Nbd7 {[%emt 0:02:53]} 9. Nxg6 {[%emt 0:01:56]} hxg6 {[%emt 0:01:30]} 10. e4 {[%emt 0:00:51]} dxe4 {[%emt 0:04:25]} 11. g3 {[%emt 0:00:13]} e6 {[%emt 0:03:01]} 12. Bg2 {[%emt 0:00:06]} Be7 {[%emt 0:01:14]} 13. O-O {[%emt 0:00:08]} O-O {[%emt 0:03:21]} 14. Rac1 {[%emt 0:00:05]} Nd5 {[%emt 0:19:52]} 15. Bxe7 {[%emt 0:00:17]} Nxe7 {[%emt 0:04:59]} 16. Nxe4 {[%emt 0:00:08]} Nf5 {[%emt 0:02:08]} 17. Rfd1 {[%emt 0:00:11]} Nf6 {[%emt 0:00:03]} 18. Ng5 {[%emt 0:00:11]} Nd5 {[%emt 0:01:27]} 19. h4 {[%emt 0:03:45]} Qd7 {[%emt 0:02:29]} 20. Nf3 {[%emt 0:04:04]} Qc7 {[%emt 0:02:19]} 21. Rd2 {[%emt 0:03:45]} Rb8 {[%emt 0:01:41]} 22. Rdc2 {[%emt 0:03:05]} a5 {[%emt 0:03:11]} 23. Qa4 {[%emt 0:09:20]} Nb4 {[%emt 0:01:40]} 24. Rd2 {[%emt 0:01:07]} b6 {[%emt 0:03:47]} 25. cxb6 {[%emt 0:00:24]} Rxb6 {[%emt 0:00:03]} 26. Rc5 {[%emt 0:05:09]} Rb5 {[%emt 0:04:38]} 27. Rxb5 {[%emt 0:03:35]} cxb5 {[%emt 0:00:02]} 28. Qxb5 {[%emt 0:00:10]} Nd6 {[%emt 0:00:10]} 29. Qa4 {[%emt 0:00:59]} Qc4 {[%emt 0:02:57]} 30. a3 {[%emt 0:02:40]} Nd5 {[%emt 0:00:08]} 31. Qxc4 {[%emt 0:00:10]} Nxc4 {[%emt 0:00:04]} 32. Rc2 {[%emt 0:00:06]} Ncb6 {[%emt 0:00:51]} 33. Ne5 {[%emt 0:03:25]} Rc7 {[%emt 0:03:44]} 34. Rc5 {[%emt 0:02:51]} a4 {[%emt 0:01:37]} 35. Bxd5 {[%emt 0:08:20]} Nxd5 {[%emt 0:01:00]} 36. Rxc7 {[%emt 0:00:06]} Nxc7 {[%emt 0:00:02]} 37. Kf1 {[%emt 0:00:17]} Nb5 {[%emt 0:00:59]} 38. Nc6 {[%emt 0:02:47]} f6 {[%emt 0:00:05]} 39. Ke2 {[%emt 0:01:01]} Kf7 {[%emt 0:00:02]} 40. Kd3 {[%emt 0:00:10]} Ke8 {[%emt 0:00:14]} 41. Nb4 {[%emt 0:01:28]} Kd7 {[%emt 0:01:19]} 42. Na2 {[%emt 0:00:28]} 1-0

[Event "Hunan Belt and Road Open 2019"]
[Site "Hunan"]
[Date "2019.07.29"]
[Round "1.12"]
[White "Wang, Chen"]
[Black "Adhiban, B.."]
[Result "1-0"]
[ECO "B51"]
[WhiteElo "2476"]
[BlackElo "2665"]
[Annotator "ChessBase"]
[PlyCount "73"]
[EventDate "2019.07.29"]
[EventType "swiss"]
[EventCountry "CHN"]
[SourceTitle "playchess.com"]
[Source "ChessBase"]
[SourceQuality "1"]
[TimeControl "5400+30"]

1. e4 {[%emt 0:00:00]} c5 {[%emt 0:00:00]} 2. Nf3 {[%emt 0:00:14]} d6 {[%emt 0:00:00]} 3. Bb5+ {[%emt 0:00:08]} Nd7 {[%emt 0:00:00]} 4. c3 {[%emt 0:01:38]} Ngf6 {[%emt 0:00:07]} 5. Qe2 {[%emt 0:00:29]} a6 {[%emt 0:01:10]} 6. Ba4 {[%emt 0:00:12]} b5 {[%emt 0:01:00]} 7. Bc2 {[%emt 0:00:09]} Bb7 {[%emt 0:02:33]} 8. O-O {[%emt 0:00:44]} c4 {[%emt 0:06:17]} 9. b3 {[%emt 0:07:49]} Rc8 {[%emt 0:02:20]} 10. bxc4 {[%emt 0:11:22]} bxc4 {[%emt 0:00:06]} 11. Na3 {[%emt 0:10:16]} Nc5 {[%emt 0:29:45]} 12. Nxc4 {[%emt 0:03:54]} Bxe4 {[%emt 0:02:09]} 13. d3 {[%emt 0:09:56]} Bg6 {[%emt 0:01:05]} 14. Ba3 {[%emt 0:03:42]} e6 {[%emt 0:15:19]} 15. Bxc5 {[%emt 0:23:04]} Rxc5 {[%emt 0:00:05]} 16. Ba4+ {[%emt 0:00:22]} Ke7 {[%emt 0:00:01]} 17. Nd4 {[%emt 0:02:55]} Qc7 {[%emt 0:00:30]} 18. Rfe1 {[%emt 0:01:20]} Be4 {[%emt 0:16:38]} 19. Nxd6 {[%emt 0:03:19]} Bd5 {[%emt 0:02:23]} 20. c4 {[%emt 0:00:19]} g6 {[%emt 0:06:18]} 21. Nxf7 {[%emt 0:01:49]} Kxf7 {[%emt 0:00:48]} 22. cxd5 {[%emt 0:00:06]} Qf4 {[%emt 0:01:09]} 23. dxe6+ {[%emt 0:06:59]} Kg7 {[%emt 0:00:06]} 24. Qe3 {[%emt 0:00:58]} Qxe3 {[%emt 0:00:20]} 25. fxe3 {[%emt 0:00:21]} Be7 {[%emt 0:00:14]} 26. Rac1 {[%emt 0:01:52]} Rxc1 {[%emt 0:01:20]} 27. Rxc1 {[%emt 0:00:02]} Nd5 {[%emt 0:00:18]} 28. Rf1 {[%emt 0:01:55]} Bf6 {[%emt 0:02:49]} 29. Nc2 {[%emt 0:00:06]} Rc8 {[%emt 0:00:14]} 30. Bb3 {[%emt 0:01:05]} Nb6 {[%emt 0:00:06]} 31. Nb4 {[%emt 0:02:44]} a5 {[%emt 0:00:56]} 32. Nd5 {[%emt 0:00:12]} Nxd5 {[%emt 0:00:15]} 33. Bxd5 {[%emt 0:00:01]} Rc7 {[%emt 0:00:52]} 34. Rb1 {[%emt 0:00:58]} Bg5 {[%emt 0:00:56]} 35. Kf2 {[%emt 0:00:13]} Kf6 {[%emt 0:00:03]} 36. Kf3 {[%emt 0:00:52]} Rc5 {[%emt 0:01:13]} 37. Bc4 {[%emt 0:03:09]} 1-0

[Event "Hunan Belt and Road Open 2019"]
[Site "Hunan"]
[Date "2019.07.29"]
[Round "1.13"]
[White "Motylev, Alexander"]
[Black "Peng, Xiongjian"]
[Result "1/2-1/2"]
[ECO "C78"]
[WhiteElo "2654"]
[BlackElo "2467"]
[Annotator "ChessBase"]
[PlyCount "59"]
[EventDate "2019.07.29"]
[EventType "swiss"]
[EventCountry "CHN"]
[SourceTitle "playchess.com"]
[Source "ChessBase"]
[SourceQuality "1"]
[TimeControl "5400+30"]

1. e4 {[%emt 0:00:00]} e5 {[%emt 0:00:00]} 2. Nf3 {[%emt 0:00:00]} Nc6 {[%emt 0:00:00]} 3. Bb5 {[%emt 0:00:00]} a6 {[%emt 0:00:04]} 4. Ba4 {[%emt 0:00:00]} Nf6 {[%emt 0:00:07]} 5. O-O {[%emt 0:00:00]} Bc5 {[%emt 0:00:04]} 6. c3 {[%emt 0:00:24]} b5 {[%emt 0:00:11]} 7. Bc2 {[%emt 0:00:06]} d5 {[%emt 0:00:11]} 8. d4 {[%emt 0:00:07]} dxe4 {[%emt 0:00:39]} 9. Nxe5 {[%emt 0:00:23]} Nxe5 {[%emt 0:01:49]} 10. dxc5 {[%emt 0:00:05]} Bg4 {[%emt 0:27:10]} 11. Qxd8+ {[%emt 0:03:15]} Rxd8 {[%emt 0:00:10]} 12. Bf4 {[%emt 0:03:00]} Rd5 {[%emt 0:03:49]} 13. Nd2 {[%emt 0:09:31]} Be2 {[%emt 0:04:54]} 14. Rfe1 {[%emt 0:12:01]} Nd3 {[%emt 0:00:15]} 15. Bxd3 {[%emt 0:02:17]} exd3 {[%emt 0:00:20]} 16. b4 {[%emt 0:03:12]} Kd7 {[%emt 0:00:26]} 17. a4 {[%emt 0:00:49]} g5 {[%emt 0:05:09]} 18. Bxc7 {[%emt 0:18:29]} Re8 {[%emt 0:15:07]} 19. f3 {[%emt 0:22:24]} Kxc7 {[%emt 0:04:30]} 20. axb5 {[%emt 0:00:05]} axb5 {[%emt 0:04:05]} 21. Ra7+ {[%emt 0:00:38]} Kb8 {[%emt 0:00:07]} 22. Rea1 {[%emt 0:08:07]} Rd7 {[%emt 0:00:30]} 23. R7a6 {[%emt 0:01:25]} Re6 {[%emt 0:01:50]} 24. Ra8+ {[%emt 0:00:55]} Kc7 {[%emt 0:01:20]} 25. c4 {[%emt 0:00:49]} Re8 {[%emt 0:03:39]} 26. R1a7+ {[%emt 0:04:56]} Kc6 {[%emt 0:00:07]} 27. Ra6+ {[%emt 0:03:07]} Kc7 {[%emt 0:00:10]} 28. R6a7+ {[%emt 0:06:48]} Kc6 {[%emt 0:00:06]} 29. Ra6+ {[%emt 0:00:22]} Kc7 {[%emt 0:00:01]} 30. R6a7+ {[%emt 0:00:33]} 1/2-1/2

[Event "Hunan Belt and Road Open 2019"]
[Site "Hunan"]
[Date "2019.07.29"]
[Round "1.14"]
[White "Yu, Ruiyuan"]
[Black "Lupulescu, Constantin"]
[Result "1/2-1/2"]
[ECO "C07"]
[WhiteElo "2464"]
[BlackElo "2649"]
[Annotator "ChessBase"]
[PlyCount "59"]
[EventDate "2019.07.29"]
[EventType "swiss"]
[EventCountry "CHN"]
[SourceTitle "playchess.com"]
[Source "ChessBase"]
[SourceQuality "1"]
[TimeControl "5400+30"]

1. e4 {[%emt 0:00:00]} e6 {[%emt 0:00:00]} 2. d4 {[%emt 0:00:00]} d5 {[%emt 0:00:00]} 3. Nd2 {[%emt 0:00:36]} c5 {[%emt 0:00:00]} 4. exd5 {[%emt 0:00:07]} Qxd5 {[%emt 0:00:00]} 5. Ngf3 {[%emt 0:00:11]} cxd4 {[%emt 0:00:00]} 6. Bc4 {[%emt 0:00:07]} Qd7 {[%emt 0:00:17]} 7. O-O {[%emt 0:00:08]} Nc6 {[%emt 0:00:07]} 8. Nb3 {[%emt 0:00:14]} a6 {[%emt 0:00:25]} 9. Nbxd4 {[%emt 0:02:29]} Nxd4 {[%emt 0:00:38]} 10. Nxd4 {[%emt 0:07:37]} Qc7 {[%emt 0:00:09]} 11. Bb3 {[%emt 0:00:06]} Bd6 {[%emt 0:00:43]} 12. Re1 {[%emt 0:01:02]} Nf6 {[%emt 0:01:58]} 13. Nf5 {[%emt 0:01:22]} Bxh2+ {[%emt 0:02:10]} 14. Kh1 {[%emt 0:00:05]} O-O {[%emt 0:00:23]} 15. Nxg7 {[%emt 0:00:12]} Rd8 {[%emt 0:01:06]} 16. Qf3 {[%emt 0:00:09]} Kxg7 {[%emt 0:00:10]} 17. Bh6+ {[%emt 0:00:08]} Kg6 {[%emt 0:00:10]} 18. c3 {[%emt 0:00:56]} Nh5 {[%emt 0:03:42]} 19. Bc1 {[%emt 0:05:57]} Bf4 {[%emt 0:06:47]} 20. g4 {[%emt 0:00:39]} Ng3+ {[%emt 0:01:52]} 21. fxg3 {[%emt 0:00:03]} Bxc1 {[%emt 0:00:07]} 22. Raxc1 {[%emt 0:00:07]} b6 {[%emt 0:00:39]} 23. Bc2+ {[%emt 0:00:05]} Kg7 {[%emt 0:00:11]} 24. Be4 {[%emt 0:00:06]} Rb8 {[%emt 0:04:18]} 25. Rc2 {[%emt 0:03:20]} Bb7 {[%emt 0:01:12]} 26. Rh2 {[%emt 0:00:11]} Bxe4 {[%emt 0:01:12]} 27. Qxe4 {[%emt 0:00:04]} Qb7 {[%emt 0:00:41]} 28. Rxh7+ {[%emt 0:00:09]} Kg8 {[%emt 0:00:46]} 29. Qxb7 {[%emt 0:00:27]} Rxb7 {[%emt 0:00:03]} 30. Rh2 {[%emt 0:00:07]} 1/2-1/2

[Event "Hunan Belt and Road Open 2019"]
[Site "Hunan"]
[Date "2019.07.29"]
[Round "1.15"]
[White "Ganguly, Surya Shekhar"]
[Black "Taher, Yoseph Theolifus"]
[Result "1-0"]
[ECO "B38"]
[WhiteElo "2638"]
[BlackElo "2460"]
[Annotator "ChessBase"]
[PlyCount "139"]
[EventDate "2019.07.29"]
[EventType "swiss"]
[EventCountry "CHN"]
[SourceTitle "playchess.com"]
[Source "ChessBase"]
[SourceQuality "1"]
[TimeControl "5400+30"]

1. c4 {[%emt 0:00:00]} c5 {[%emt 0:00:44]} 2. Nf3 {[%emt 0:00:00]} Nc6 {[%emt 0:00:15]} 3. d4 {[%emt 0:00:17]} cxd4 {[%emt 0:00:24]} 4. Nxd4 {[%emt 0:00:07]} g6 {[%emt 0:00:20]} 5. e4 {[%emt 0:00:43]} Bg7 {[%emt 0:00:08]} 6. Be3 {[%emt 0:00:06]} Nf6 {[%emt 0:00:11]} 7. Nc3 {[%emt 0:00:06]} O-O {[%emt 0:00:55]} 8. Be2 {[%emt 0:00:11]} d6 {[%emt 0:00:24]} 9. O-O {[%emt 0:00:07]} a5 {[%emt 0:00:48]} 10. Ndb5 {[%emt 0:01:57]} Nd7 {[%emt 0:05:21]} 11. Qd2 {[%emt 0:05:29]} Nc5 {[%emt 0:00:59]} 12. Rad1 {[%emt 0:00:32]} a4 {[%emt 0:03:17]} 13. f4 {[%emt 0:02:08]} Qa5 {[%emt 0:01:25]} 14. e5 {[%emt 0:04:16]} Rd8 {[%emt 0:09:49]} 15. Nd5 {[%emt 0:04:03]} Qxd2 {[%emt 0:01:16]} 16. Rxd2 {[%emt 0:00:07]} Ne4 {[%emt 0:00:33]} 17. Rdd1 {[%emt 0:00:56]} dxe5 {[%emt 0:09:13]} 18. Nxe7+ {[%emt 0:14:46]} Kf8 {[%emt 0:00:13]} 19. Rxd8+ {[%emt 0:02:58]} Nxd8 {[%emt 0:00:05]} 20. Nc7 {[%emt 0:00:23]} Rb8 {[%emt 0:03:03]} 21. Ba7 {[%emt 0:01:49]} Kxe7 {[%emt 0:00:12]} 22. Nd5+ {[%emt 0:01:08]} Ke8 {[%emt 0:00:14]} 23. Bxb8 {[%emt 0:00:15]} exf4 {[%emt 0:00:06]} 24. Bxf4 {[%emt 0:02:43]} Bxb2 {[%emt 0:01:34]} 25. Re1 {[%emt 0:05:03]} Ne6 {[%emt 0:06:33]} 26. Bf3 {[%emt 0:02:54]} N4c5 {[%emt 0:04:15]} 27. Be3 {[%emt 0:00:29]} Nd3 {[%emt 0:12:55]} 28. Re2 {[%emt 0:09:28]} a3 {[%emt 0:20:51]} 29. Nb6 {[%emt 0:00:18]} Nb4 {[%emt 0:00:11]} 30. Nxc8 {[%emt 0:00:29]} Nxa2 {[%emt 0:00:04]} 31. Nd6+ {[%emt 0:00:21]} Kf8 {[%emt 0:00:06]} 32. Nb5 {[%emt 0:01:34]} Nb4 {[%emt 0:00:14]} 33. Rxb2 {[%emt 0:07:43]} axb2 {[%emt 0:00:10]} 34. Be4 {[%emt 0:00:05]} f5 {[%emt 0:02:44]} 35. Bb1 {[%emt 0:00:08]} Nc6 {[%emt 0:01:57]} 36. Na3 {[%emt 0:02:25]} Ke7 {[%emt 0:00:12]} 37. Kf1 {[%emt 0:00:34]} Kd6 {[%emt 0:00:10]} 38. Ke1 {[%emt 0:01:06]} Ke5 {[%emt 0:01:54]} 39. Kd2 {[%emt 0:02:23]} Nf4 {[%emt 0:01:29]} 40. g3 {[%emt 0:02:31]} Ne6 {[%emt 0:00:27]} 41. Kc3 {[%emt 0:01:39]} Ncd4 {[%emt 0:00:16]} 42. Bf4+ {[%emt 0:05:47]} Kf6 {[%emt 0:00:18]} 43. Bd6 {[%emt 0:00:09]} Nf3 {[%emt 0:00:23]} 44. h4 {[%emt 0:02:44]} h6 {[%emt 0:05:23]} 45. Kxb2 {[%emt 0:02:03]} g5 {[%emt 0:00:18]} 46. hxg5+ {[%emt 0:00:07]} Kxg5 {[%emt 0:02:03]} 47. c5 {[%emt 0:00:57]} Nd2 {[%emt 0:03:14]} 48. Ba2 {[%emt 0:00:51]} Kf6 {[%emt 0:00:56]} 49. Bd5 {[%emt 0:06:34]} Ne4 {[%emt 0:00:17]} 50. Bxe4 {[%emt 0:00:06]} fxe4 {[%emt 0:00:03]} 51. Nc4 {[%emt 0:00:08]} Kg5 {[%emt 0:02:28]} 52. Ne3 {[%emt 0:00:25]} h5 {[%emt 0:00:46]} 53. Kc3 {[%emt 0:00:10]} h4 {[%emt 0:00:07]} 54. Be7+ {[%emt 0:00:10]} Kh5 {[%emt 0:00:06]} 55. gxh4 {[%emt 0:00:18]} Nxc5 {[%emt 0:00:04]} 56. Bxc5 {[%emt 0:00:11]} Kxh4 {[%emt 0:00:03]} 57. Kd4 {[%emt 0:00:13]} b6 {[%emt 0:00:04]} 58. Bb4 {[%emt 0:00:33]} b5 {[%emt 0:00:14]} 59. Kxe4 {[%emt 0:00:05]} Kg5 {[%emt 0:00:02]} 60. Nd5 {[%emt 0:01:06]} Kg4 {[%emt 0:00:07]} 61. Bd6 {[%emt 0:00:26]} b4 {[%emt 0:00:06]} 62. Nxb4 {[%emt 0:00:04]} Kg5 {[%emt 0:00:05]} 63. Nd5 {[%emt 0:00:15]} Kg6 {[%emt 0:00:13]} 64. Kf4 {[%emt 0:00:14]} Kg7 {[%emt 0:00:13]} 65. Kg5 {[%emt 0:00:08]} Kf7 {[%emt 0:00:05]} 66. Nc7 {[%emt 0:00:10]} Kg7 {[%emt 0:00:03]} 67. Be7 {[%emt 0:00:43]} Kf7 {[%emt 0:00:07]} 68. Bf6 {[%emt 0:00:04]} Kf8 {[%emt 0:00:04]} 69. Kg6 {[%emt 0:00:04]} Kg8 {[%emt 0:00:02]} 70. Be7 {[%emt 0:00:08]} 1-0

[Event "Hunan Belt and Road Open 2019"]
[Site "Hunan"]
[Date "2019.07.29"]
[Round "1.16"]
[White "Li, Shilong"]
[Black "Parligras, Mircea-Emilian"]
[Result "0-1"]
[ECO "D39"]
[WhiteElo "2457"]
[BlackElo "2638"]
[Annotator "ChessBase"]
[PlyCount "128"]
[EventDate "2019.07.29"]
[EventType "swiss"]
[EventCountry "CHN"]
[SourceTitle "playchess.com"]
[Source "ChessBase"]
[SourceQuality "1"]
[TimeControl "5400+30"]

1. d4 {[%emt 0:00:00]} Nf6 {[%emt 0:00:00]} 2. c4 {[%emt 0:00:00]} e6 {[%emt 0:00:00]} 3. Nf3 {[%emt 0:00:14]} d5 {[%emt 0:00:00]} 4. Nc3 {[%emt 0:01:30]} Bb4 {[%emt 0:01:36]} 5. Bg5 {[%emt 0:07:55]} dxc4 {[%emt 0:01:20]} 6. e4 {[%emt 0:08:40]} h6 {[%emt 0:00:59]} 7. Bxf6 {[%emt 0:00:53]} Qxf6 {[%emt 0:00:08]} 8. Bxc4 {[%emt 0:00:08]} c5 {[%emt 0:01:00]} 9. O-O {[%emt 0:01:39]} cxd4 {[%emt 0:04:21]} 10. e5 {[%emt 0:08:23]} Qd8 {[%emt 0:02:35]} 11. Ne4 {[%emt 0:02:36]} O-O {[%emt 0:04:43]} 12. Qe2 {[%emt 0:06:28]} Be7 {[%emt 0:00:34]} 13. Rad1 {[%emt 0:09:22]} Qc7 {[%emt 0:01:27]} 14. Ng3 {[%emt 0:21:53]} Rd8 {[%emt 0:01:21]} 15. Nxd4 {[%emt 0:06:37]} Bd7 {[%emt 0:12:49]} 16. Nh5 {[%emt 0:19:03]} Bf8 {[%emt 0:16:13]} 17. Bd3 {[%emt 0:02:11]} Bc6 {[%emt 0:02:58]} 18. Bb1 {[%emt 0:00:26]} Qe7 {[%emt 0:15:28]} 19. Rd3 {[%emt 0:00:52]} Qh4 {[%emt 0:05:04]} 20. Rfd1 {[%emt 0:00:23]} Ba4 {[%emt 0:07:54]} 21. b3 {[%emt 0:00:36]} Nc6 {[%emt 0:00:14]} 22. Nxc6 {[%emt 0:00:35]} Bxc6 {[%emt 0:00:12]} 23. Rxd8 {[%emt 0:00:26]} Rxd8 {[%emt 0:00:06]} 24. Nf6+ {[%emt 0:00:02]} gxf6 {[%emt 0:00:12]} 25. Rxd8 {[%emt 0:00:04]} Qg5 {[%emt 0:04:31]} 26. f4 {[%emt 0:01:27]} Qxf4 {[%emt 0:00:04]} 27. exf6 {[%emt 0:00:20]} Qxf6 {[%emt 0:00:18]} 28. Qc2 {[%emt 0:00:37]} Qg7 {[%emt 0:00:12]} 29. g3 {[%emt 0:00:37]} f5 {[%emt 0:01:13]} 30. Qc5 {[%emt 0:00:31]} Qf6 {[%emt 0:00:40]} 31. Qd6 {[%emt 0:00:29]} Kg7 {[%emt 0:00:48]} 32. Qc7+ {[%emt 0:00:12]} Kg6 {[%emt 0:00:26]} 33. g4 {[%emt 0:00:46]} Qb2 {[%emt 0:04:54]} 34. gxf5+ {[%emt 0:00:30]} Kh5 {[%emt 0:00:05]} 35. Bc2 {[%emt 0:00:30]} Qxc2 {[%emt 0:07:59]} 36. Qf7+ {[%emt 0:00:09]} Kh4 {[%emt 0:00:04]} 37. Rd4+ {[%emt 0:00:07]} Be4 {[%emt 0:00:05]} 38. Rxe4+ {[%emt 0:01:09]} Qxe4 {[%emt 0:00:05]} 39. Qxf8 {[%emt 0:00:03]} Qb1+ {[%emt 0:01:43]} 40. Kg2 {[%emt 0:00:07]} Qxa2+ {[%emt 0:00:07]} 41. Kg1 {[%emt 0:00:18]} Qb1+ {[%emt 0:00:07]} 42. Kg2 {[%emt 0:00:09]} Qe4+ {[%emt 0:00:45]} 43. Kg1 {[%emt 0:00:17]} Qg4+ {[%emt 0:01:44]} 44. Kh1 {[%emt 0:00:08]} Qd1+ {[%emt 0:01:15]} 45. Kg2 {[%emt 0:00:05]} Qc2+ {[%emt 0:00:54]} 46. Kg1 {[%emt 0:00:29]} Qc1+ {[%emt 0:00:51]} 47. Kf2 {[%emt 0:01:07]} Qf4+ {[%emt 0:00:26]} 48. Ke1 {[%emt 0:00:29]} exf5 {[%emt 0:00:32]} 49. Kd1 {[%emt 0:02:13]} Kh3 {[%emt 0:00:51]} 50. Qf7 {[%emt 0:00:20]} Kxh2 {[%emt 0:00:21]} 51. Kc2 {[%emt 0:00:15]} Qf3 {[%emt 0:01:16]} 52. Kb2 {[%emt 0:00:13]} h5 {[%emt 0:00:19]} 53. Qe7 {[%emt 0:00:44]} f4 {[%emt 0:00:41]} 54. Ka3 {[%emt 0:00:20]} a6 {[%emt 0:01:03]} 55. Qg5 {[%emt 0:00:48]} Qg4 {[%emt 0:00:24]} 56. Qc5 {[%emt 0:00:12]} f3 {[%emt 0:00:17]} 57. Qf2+ {[%emt 0:00:12]} Kh3 {[%emt 0:00:11]} 58. Qf1+ {[%emt 0:00:13]} Qg2 {[%emt 0:00:10]} 59. Qd3 {[%emt 0:00:04]} h4 {[%emt 0:00:16]} 60. Qd7+ {[%emt 0:00:40]} Kh2 {[%emt 0:00:28]} 61. Qc7+ {[%emt 0:01:03]} Qg3 {[%emt 0:00:11]} 62. Qxb7 {[%emt 0:00:30]} f2 {[%emt 0:00:22]} 63. Qxa6 {[%emt 0:00:09]} Kg1 {[%emt 0:00:06]} 64. Qb6 {[%emt 0:00:08]} h3 {[%emt 0:00:06]} 0-1

[Event "Hunan Belt and Road Open 2019"]
[Site "Hunan"]
[Date "2019.07.29"]
[Round "1.17"]
[White "Nguyen, Ngoc Truong Son"]
[Black "Zhu, Jiner"]
[Result "1-0"]
[ECO "C91"]
[WhiteElo "2636"]
[BlackElo "2454"]
[Annotator "ChessBase"]
[PlyCount "109"]
[EventDate "2019.07.29"]
[EventType "swiss"]
[EventCountry "CHN"]
[SourceTitle "playchess.com"]
[Source "ChessBase"]
[SourceQuality "1"]
[TimeControl "5400+30"]

1. e4 {[%emt 0:00:00]} e5 {[%emt 0:00:00]} 2. Nf3 {[%emt 0:00:00]} Nc6 {[%emt 0:00:00]} 3. Bb5 {[%emt 0:00:12]} a6 {[%emt 0:00:13]} 4. Ba4 {[%emt 0:00:47]} Nf6 {[%emt 0:00:11]} 5. O-O {[%emt 0:00:17]} Be7 {[%emt 0:00:13]} 6. Re1 {[%emt 0:00:20]} b5 {[%emt 0:00:07]} 7. Bb3 {[%emt 0:00:08]} O-O {[%emt 0:00:08]} 8. c3 {[%emt 0:01:34]} d6 {[%emt 0:00:10]} 9. d4 {[%emt 0:07:55]} exd4 {[%emt 0:02:51]} 10. cxd4 {[%emt 0:01:33]} Bg4 {[%emt 0:00:11]} 11. Nc3 {[%emt 0:02:08]} Na5 {[%emt 0:05:48]} 12. Bc2 {[%emt 0:08:23]} c5 {[%emt 0:01:09]} 13. dxc5 {[%emt 0:11:01]} dxc5 {[%emt 0:00:22]} 14. h3 {[%emt 0:25:22]} Qxd1 {[%emt 0:07:02]} 15. Rxd1 {[%emt 0:01:11]} Bxf3 {[%emt 0:04:47]} 16. gxf3 {[%emt 0:00:11]} Rfd8 {[%emt 0:01:14]} 17. e5 {[%emt 0:04:13]} Rxd1+ {[%emt 0:12:29]} 18. Bxd1 {[%emt 0:01:28]} Nd7 {[%emt 0:06:13]} 19. Nd5 {[%emt 0:00:48]} Bd8 {[%emt 0:00:55]} 20. f4 {[%emt 0:00:21]} Nb6 {[%emt 0:14:40]} 21. Bf3 {[%emt 0:01:03]} Rc8 {[%emt 0:00:21]} 22. Kg2 {[%emt 0:05:59]} Nc6 {[%emt 0:04:50]} 23. Be3 {[%emt 0:02:07]} Nc4 {[%emt 0:02:17]} 24. Bg4 {[%emt 0:01:43]} Nxe3+ {[%emt 0:01:05]} 25. fxe3 {[%emt 0:00:57]} Rb8 {[%emt 0:00:20]} 26. Rc1 {[%emt 0:03:31]} c4 {[%emt 0:04:54]} 27. b3 {[%emt 0:00:40]} Na5 {[%emt 0:00:47]} 28. bxc4 {[%emt 0:00:47]} Nxc4 {[%emt 0:01:39]} 29. Be2 {[%emt 0:00:38]} Rc8 {[%emt 0:00:55]} 30. Bxc4 {[%emt 0:00:33]} bxc4 {[%emt 0:00:16]} 31. Kf3 {[%emt 0:00:58]} f5 {[%emt 0:09:06]} 32. e4 {[%emt 0:02:51]} fxe4+ {[%emt 0:05:13]} 33. Kxe4 {[%emt 0:00:04]} g6 {[%emt 0:00:04]} 34. Rc3 {[%emt 0:00:44]} Kf7 {[%emt 0:05:32]} 35. Ne3 {[%emt 0:00:08]} Ke6 {[%emt 0:00:28]} 36. Rxc4 {[%emt 0:00:09]} Rxc4+ {[%emt 0:00:08]} 37. Nxc4 {[%emt 0:00:04]} Be7 {[%emt 0:00:56]} 38. Nd2 {[%emt 0:00:17]} h6 {[%emt 0:01:43]} 39. Nb3 {[%emt 0:00:29]} Bb4 {[%emt 0:02:55]} 40. Nd4+ {[%emt 0:00:53]} Kf7 {[%emt 0:00:07]} 41. f5 {[%emt 0:00:56]} gxf5+ {[%emt 0:00:20]} 42. Kxf5 {[%emt 0:00:08]} Bd2 {[%emt 0:00:18]} 43. Nc6 {[%emt 0:00:58]} a5 {[%emt 0:01:09]} 44. a4 {[%emt 0:00:16]} Bc3 {[%emt 0:00:13]} 45. h4 {[%emt 0:00:46]} Be1 {[%emt 0:00:28]} 46. h5 {[%emt 0:00:10]} Bc3 {[%emt 0:00:50]} 47. Ke4 {[%emt 0:08:23]} Ke6 {[%emt 0:02:23]} 48. Nd4+ {[%emt 0:00:05]} Kf7 {[%emt 0:00:03]} 49. Kd5 {[%emt 0:00:06]} Bb2 {[%emt 0:01:18]} 50. Nc6 {[%emt 0:00:11]} Bc3 {[%emt 0:00:03]} 51. Kd6 {[%emt 0:00:11]} Ke8 {[%emt 0:00:07]} 52. Ke6 {[%emt 0:00:05]} Bd2 {[%emt 0:00:38]} 53. Nd4 {[%emt 0:00:40]} Be3 {[%emt 0:02:18]} 54. Nf5 {[%emt 0:00:07]} Bf4 {[%emt 0:00:06]} 55. Nd6+ {[%emt 0:00:08]} 1-0